Cogmind - Beta 17 @@@ ROGUE MODE // 2026.08.17 @ 16:55:36 Player: Fedop Result: Destroyed by H-66 Slayer with Gauss Rifle Performance ------------- Evolutions (4) 2000 Regions Visited (5) 1000 Robots Destroyed (22) 110 Value Destroyed (927) 927 Prototype IDs (6) 120 Alien Tech Used (0) 0 Bonus (436) 436 TOTAL SCORE: 4593 Bonus ------- Follower Combat Kills 156 Registered with UFD 300 Friendly Fire -20 Cogmind --------- Core Integrity 0/850 Matter 5/300 Energy 100/100 System Corruption 14% Temperature Cool (0) Movement Core (50) Location -6/Factory Parts ------- > --- POWER (2) -------- (None) > --- PROPULSION (6) --- (None) > --- UTILITY (5) ------ Improved System Shield > --- WEAPON (2) ------- (None) > --- INVENTORY (5) ---- Deep Structural Scanner Core Shielding Hardlight Generator Coil Gun Hypervelocity Gauss Rifle Peak State ------------ > --- POWER ------------ Subdweller Power Source Fission Core > --- PROPULSION ------- Compact Wheel Overtuned Scrapsphere Overtuned Scrapsphere Armored Huge Wheel > --- UTILITY ---------- Humpback Sensor Array Advanced Signal Interpreter Hardened Medium Armor Plating > --- WEAPON ----------- Overtuned Coil Gun Overtuned Coil Gun > --- INVENTORY -------- Scrap Suit Heat Sink Improved Heat Sink Large Storage Unit Large Storage Unit Large Storage Unit Matter Compressor Deep Structural Scanner Subdweller Optics Targeting Computer Targeting Computer Target Analyzer Stasis Canceller Hardened Light Armor Plating Improved Light Armor Plating Reactive Plating Hardlight Generator A0-MCA's Component Scanner Overtuned Pulse Rifle Phase Cannon Flak Cannon Shock Bomb Launcher CPS Tube Power Maul DRS Beacon [Rating: 53] Favorites ----------- Power Fission Core Engine Light Ion Engine Power Core Fission Core Propulsion Compact Wheel Leg Aluminum Leg Wheel Compact Wheel Flight Unit VTOL Module Utility Humpback Device Sensor Array Storage Humpback Processor Target Analyzer Hackware Improved System Shield Protection Hardened Medium Armor Plating Weapon Hammer Energy Gun EM Pulse Gun Energy Cannon Phase Cannon Ballistic Gun Assault Rifle Ballistic Cannon Battle Cannon Launcher Shock Bomb Launcher Special Weapon CPS Tube Impact Weapon Hammer Build | -11 -10 -10 -10 -8 -6 ------- Run | Yrd Mat Min Sub Scr Fac Slots Evolved 8 | . . . . . 8 Power 1 | . . . . . 1 Propulsion 4 | . . . . . 4 Utility 3 | . . . . . 3 Weapon . | . . . . . . Parts Attached 56 | 7 4 4 12 8 21 Power 6 | 1 . 1 2 1 1 Engine 5 | 1 . 1 2 . 1 Core 1 | . . . . 1 . Reactor . | . . . . . . Propulsion 12 | 3 . 1 2 3 3 Treads . | . . . . . . Leg 3 | 1 . 1 1 . . Wheel 8 | 2 . . 1 3 2 Hover . | . . . . . . Flight 1 | . . . . . 1 Utility 17 | 1 2 1 2 2 9 Device 5 | . 1 . 1 1 2 Storage 4 | 1 1 . . 1 1 Processor 3 | . . . 1 . 2 Hackware 1 | . . . . . 1 Protection 4 | . . 1 . . 3 Artifact . | . . . . . . Weapon 21 | 2 2 1 6 2 8 Energy Gun 6 | 2 1 . 2 . 1 Energy Cannon 3 | . . . 2 . 1 Ballistic Gun 6 | . . 1 1 . 4 Ballistic Cannon 2 | . . . 1 . 1 Launcher 1 | . . . . . 1 Special Weapon 1 | . . . . 1 . Impact Weapon 2 | . 1 . . 1 . Slashing Weapon . | . . . . . . Piercing Weapon . | . . . . . . Special Melee Weapon . | . . . . . . Unidentified Prototypes . | . . . . . . Parts Lost 21 | . . 5 5 . 11 Power 4 | . . . 2 . 2 Propulsion 5 | . . 1 1 . 3 Utility 5 | . . 1 . . 4 Weapon 7 | . . 3 2 . 2 Highest Loss Streak 6 | . . 3 2 . 6 To Critical Strikes 1 | . . . 1 . . Average Backups 23 | . 4 10 13 30 17 Power 1 | . 1 1 1 1 . Propulsion 1 | . . . . 2 . Utility 14 | . 1 5 7 18 11 Weapon 5 | . 2 2 4 7 3 Tool/Special . | . . . . . . Unused Backups 34 | . . . 5 13 16 Power 1 | . . . 1 . . Propulsion 3 | . . . . 2 1 Utility 22 | . . . 2 6 14 Weapon 7 | . . . 2 4 1 Tool/Special 1 | . . . . 1 . Average Slot Usage (%) 60 | . 95 89 97 49 50 Engine 5 | . 14 14 12 2 1 Core 7 | . . . . 11 3 Leg 2 | . . 11 10 . . Wheel 18 | . 28 14 17 20 14 Device 3 | . 9 10 10 . 3 Storage 12 | . 14 14 14 13 5 Energy Gun 2 | . 22 3 8 . . Ballistic Gun 2 | . . 11 3 . 3 Ballistic Cannon 1 | . . . 8 . 1 Impact Weapon 1 | . 5 5 4 . 1 Peak Build Rating 53 | 6 7 8 15 26 53 Average Rating 19 | 3 6 6 11 20 33 On Entrance 9 | . 6 7 8 12 26 Avg Prop Armor Cover (%) 9 | 22 . 10 9 5 2 Naked Turns 31 | . . . . 29 2 Heaviest Build 263 | 12 28 30 37 215 263 Greatest Support 60 | 26 26 26 36 40 60 Greatest Overweight (x) 13 | . 1 1 2 13 7 Average Overweight (x) 3 | . . 1 1 5 1 Largest Inventory Capacity 35 | 8 15 15 15 35 35 Average Capacity 28 | 6 12 15 15 34 24 Most Carried 35 | 2 8 15 15 35 35 Average Carried 24 | . 4 10 14 31 17 Final Capacity 35 | 8 15 15 15 35 5 Final Carried 35 | 2 8 15 15 35 5 Scrap Suit Usage (%) 2 | . . . . . 15 Parts Cannibalized 1 | . . . . . 1 Class Distribution -------------------- 68% | Hauler-Mutant 28% | Mutant Dominant Class ---------------- Mutant | -10/Materials Mutant | -10/Mines Mutant | -10/Subcaves Hauler-Mutant | -8/Scraptown Hauler-Mutant | -6/Factory Resources | -11 -10 -10 -10 -8 -6 ----------- Run | Yrd Mat Min Sub Scr Fac Matter Collected 1492 | 170 . 200 233 584 305 Remotely . | . . . . . . Salvage Created 892 | . . 202 254 . 436 Parts 36 | . . 7 11 . 18 Haulers Intercepted . | . . . . . . Recyclers Shooed 1 | . . 1 . . . Parts Field Recycled . | . . . . . . Retrieved Matter . | . . . . . . Parts Self-Destructed 3 | . . . 3 . . Prevented . | . . . . . . Parts Restored . | . . . . . . Kills | -11 -10 -10 -10 -8 -6 ------- Run | Yrd Mat Min Sub Scr Fac Combat Hostiles Destroyed 22 | . . 4 7 . 11 Guns 13 | . . 3 3 . 7 Cannons 8 | . . . 4 . 4 Classes Destroyed 4 | . . 1 1 . 2 Swarmer 5 | . . . . . 5 Grunt 9 | . . 4 . . 5 Programmer 1 | . . . . . 1 Subdweller 7 | . . . 7 . . Best Kill Streak 4 | . . 2 2 . 4 Combat Bots Only 4 | . . 2 2 . 4 Max Kills in Single Turn 1 | . . 1 1 . 1 Gunslinging . | . . . . . . Exploded . | . . . . . . Melee . | . . . . . . Uniques/NPCs Destroyed . | . . . . . . Combat | -11 -10 -10 -10 -8 -6 -------- Run | Yrd Mat Min Sub Scr Fac Hostile Shots Fired 262 | . . 38 32 . 192 Missed 71 | . . 7 10 . 54 Hits 191 | . . 31 22 . 138 Melee 3 | . . . . . 3 Projectile 188 | . . 31 22 . 135 Critical Strikes 6 | . . . 1 . 5 Damage Taken 3573 | . . 424 537 . 2612 Core 1032 | . . 60 115 . 857 Absorbed by Shields . | . . . . . . Redirected to Shielding 107 | . . 54 . . 53 Regen/Repaired (Parts) 10 | . . . . . 10 Core Remaining (%) 65 | 100 . . . 30 . Volleys Fired 89 | . . 19 29 . 41 Largest 2 | . . 2 2 . 2 Hottest 122 | . . 80 108 . 122 Shots Fired 137 | . . 26 45 . 66 Gun 79 | . . 26 22 . 31 Cannon 58 | . . . 23 . 35 Launcher . | . . . . . . Special . | . . . . . . Kinetic 78 | . . 5 25 . 48 Thermal 38 | . . . 20 . 18 Explosive . | . . . . . . Electromagnetic 21 | . . 21 . . . Robot Hit Streak 24 | . . 12 24 . 7 Robot Miss Streak 10 | . . 5 2 . 10 Penetration Max 1 | . . . . . 1 Secondary Targets . | . . . . . . Shots Hit Robots 95 | . 2 16 39 . 38 Core Hits 54 | . . 7 11 . 36 Critical Kills . | . . . . . . Critical Parts Destroyed 1 | . . . . . 1 Critical Strikes 6 | . . 1 3 . 2 Burn 1 | . . . . . 1 Destroy 1 | . . . . . 1 Blast 3 | . . . 3 . . Corrupt 1 | . . 1 . . . Melee Attacks 18 | . 3 . 10 . 5 Impact 18 | . 3 . 10 . 5 Slashing . | . . . . . . Piercing . | . . . . . . Sneak Attacks 2 | . 2 . . . . Combat Hostiles . | . . . . . . Follow-up Attacks . | . . . . . . Damage Inflicted 2147 | . 93 274 739 . 1041 Guns 1185 | . . 274 351 . 560 Cannons 868 | . . . 388 . 480 Explosions . | . . . . . . Melee 93 | . 93 . . . . Ramming 1 | . . . . . 1 Kinetic 1267 | . . 64 423 . 780 Thermal 576 | . . . 316 . 260 Explosive . | . . . . . . Electromagnetic 210 | . . 210 . . . Impact 93 | . 93 . . . . Slashing . | . . . . . . Piercing . | . . . . . . Highest Corruption 13 | . . 1 1 1 13 Average Corruption 4 | . . 1 1 1 11 Corruption Purged . | . . . . . . Corruption Blocked . | . . . . . . Effects 36 | . . 4 7 . 25 Message Errors 5 | . . 3 1 . 1 Matter Fused 12 | . . . 3 . 9 Heat Flow Errors 4 | . . 1 1 . 2 Energy Discharges 4 | . . . 1 . 3 Data Loss (minor) 4 | . . . 1 . 3 Data Loss (major) 2 | . . . . . 2 Misfires 1 | . . . . . 1 Alerts 1 | . . . . . 1 Misdirections 3 | . . . . . 3 Overload Shots . | . . . . . . Overflow Damage 72 | . 68 . . . 4 Projectiles 4 | . . . . . 4 Explosions . | . . . . . . Melee 68 | . 68 . . . . Knockbacks 16 | . 1 . 2 . 13 Impact 1 | . 1 . . . . Kinetic 15 | . . . 2 . 13 Secondary . | . . . . . . Self-Inflicted Damage . | . . . . . . Shots . | . . . . . . Rammed 2 | . . 1 . . 1 Targets Rammed 2 | . . 1 . . 1 Kicked . | . . . . . . Crushed . | . . . . . . Highest Temperature 423 | . . 221 132 . 423 Average Temperature 129 | . . 82 50 . 154 Received Heat Transfer 531 | . . 228 69 . 234 Effects 2 | . . . . . 2 Short Circuit 2 | . . . . . 2 Siege Activations . | . . . . . . Martial Activations . | . . . . . . Shielding Activations . | . . . . . . Robots Disrupted . | . . . . . . Combat Hostiles . | . . . . . . Robots Corrupted 1 | . . 1 . . . Combat Hostiles 1 | . . 1 . . . Parts Fried 2 | . . 2 . . . Impact Corruptions 3 | . 3 . . . . Robots Melted . | . . . . . . Combat Hostiles . | . . . . . . Parts Melted . | . . . . . . Heat Transferred 1051 | . . . 592 . 459 Parts Sabotaged . | . . . . . . Parts Stolen . | . . . . . . Parts Stripped . | . . . . . . Power Chain Reactions . | . . . . . . Alert | -11 -10 -10 -10 -8 -6 ------- Run | Yrd Mat Min Sub Scr Fac Maximum Alert Level 1 | . . . . . 1 Low Security (%) 93 | 100 100 100 . . 87 Level 1 6 | . . . . . 12 Level 2 . | . . . . . . Level 3 . | . . . . . . Level 4 . | . . . . . . Level 5 . | . . . . . . High Security . | . . . . . . Max Security . | . . . . . . Peak Influence 224 | . 15 50 . . 224 Initial . | . . . . . . Average 46 | . 2 10 . . 82 Influence Increases 767 | . 20 174 . . 573 Destroy 0b10 Robot/C 340 | . . 120 . . 220 Destroy Leader 70 | . . 20 . . 50 Allied During Kill 4 | . . 4 . . . Successful Hack 19 | . 5 . . . 14 Disable Machine 60 | . 15 15 . . 30 Destroy Structure 19 | . . . . . 19 Lose Combat Pursuer 255 | . . 15 . . 240 Influence Decreases 612 | . 20 174 . . 418 Time Decay 457 | . 20 129 . . 308 Lost Part 155 | . . 45 . . 110 Squads Dispatched 8 | . 2 . . . 6 Investigation 1 | . 1 . . . . Extermination 1 | . . . . . 1 Reinforcement 6 | . 1 . . . 5 Assault . | . . . . . . Garrison . | . . . . . . Intercept . | . . . . . . Searches Triggered . | . . . . . . Construction Impeded 1 | . . . . . 1 Haulers Reinforced . | . . . . . . Active Scanning Responses . | . . . . . . Cargo Convoy Interrupts 1 | . . . . . 1 Stealth | -11 -10 -10 -10 -8 -6 --------- Run | Yrd Mat Min Sub Scr Fac Distress Signals 3 | . . . . . 3 Communications Jammed . | . . . . . . Distress Signals . | . . . . . . Times Spotted 67 | . 3 7 9 . 48 Peak Tracking Total 16 | . 3 2 2 . 16 Tactical Retreats 6 | . . 1 . . 5 Traps | -11 -10 -10 -10 -8 -6 ------- Run | Yrd Mat Min Sub Scr Fac Traps Triggered 1 | . . . 1 . . Indirectly . | . . . . . . Trap Hack Attempts . | . . . . . . Triggered . | . . . . . . Disarmed . | . . . . . . Reprogrammed . | . . . . . . Reused . | . . . . . . Traps Extracted . | . . . . . . Installed . | . . . . . . Triggered . | . . . . . . Machines | -11 -10 -10 -10 -8 -6 ---------- Run | Yrd Mat Min Sub Scr Fac Machines Disabled 4 | . 1 1 . . 2 Max in Single Turn 1 | . 1 1 . . 1 Machines Repaired . | . . . . . . Machines Dismantled . | . . . . . . Machines Sabotaged . | . . . . . . Overloaded Fab Kills . | . . . . . . Hacking | -11 -10 -10 -10 -8 -6 --------- Run | Yrd Mat Min Sub Scr Fac Machines Accessed 13 | . 1 . . 10 2 Terminals 3 | . 1 . . . 2 Fabricators . | . . . . . . Repair Stations . | . . . . . . Recycling Units . | . . . . . . Scanalyzers . | . . . . . . Garrison Access . | . . . . . . Total Hacks 77 | . 3 . . 69 5 Successful 71 | . 1 . . 69 1 Failed 6 | . 2 . . . 4 Catastrophic 3 | . 1 . . . 2 Database Lockouts . | . . . . . . Manual 7 | . 3 . . . 4 Terminals 8 | . 3 . . . 5 Fabricators . | . . . . . . Repair Stations . | . . . . . . Recycling Units . | . . . . . . Scanalyzers . | . . . . . . Garrison Access . | . . . . . . Terminal Hacks 69 | . . . . 69 . Record 62 | . . . . 62 . Robot Analysis 6 | . . . . 6 . Proto ID Catalog 1 | . . . . 1 . Fabricator Hacks . | . . . . . . Repair Station Hacks . | . . . . . . Recycling Unit Hacks . | . . . . . . Scanalyzer . | . . . . . . Garrison Access Hacks . | . . . . . . Unauthorized Hacks 2 | . 1 . . . 1 Terminals 2 | . 1 . . . 1 Botnet 2 | . 1 . . . 1 Fabricators . | . . . . . . Repair Stations . | . . . . . . Recycling Units . | . . . . . . Scanalyzers . | . . . . . . Garrison Access . | . . . . . . Data Cores Recovered . | . . . . . . Used . | . . . . . . Hacking Detections 3 | . 1 . . . 2 Full Trace Events 1 | . 1 . . . . Feedback Events . | . . . . . . Feedback Blocked . | . . . . . . Robot Schematics Acquired . | . . . . . . Robots Built . | . . . . . . Authchips . | . . . . . . Time . | . . . . . . Total Robot Build Rating . | . . . . . . Part Schematics Acquired . | . . . . . . Parts Built . | . . . . . . Authchips . | . . . . . . Time . | . . . . . . Total Part Build Rating . | . . . . . . Part Studies Acquired . | . . . . . . Parts Repaired . | . . . . . . Time . | . . . . . . Parts Recycled . | . . . . . . Recycled Matter . | . . . . . . Retrieved Matter . | . . . . . . Retrieved Components . | . . . . . . Parts Scanalyzed . | . . . . . . Part Schematics Acquired . | . . . . . . Parts Damaged . | . . . . . . Bothacking | -11 -10 -10 -10 -8 -6 ------------ Run | Yrd Mat Min Sub Scr Fac Used RIF Installer . | . . . . . . Robots Hacked . | . . . . . . Non-combat . | . . . . . . Combat . | . . . . . . Robot Hacks Applied . | . . . . . . Relay Couplers Released . | . . . . . . Fabnet Peak Effective % . | . . . . . . Robots Rewired . | . . . . . . Allies Hacked . | . . . . . . Hacks Repelled . | . . . . . . Allies | -11 -10 -10 -10 -8 -6 -------- Run | Yrd Mat Min Sub Scr Fac Total Allies 3 | . . 3 . . . Largest Group 3 | . . 3 3 . . Highest-Rated Group 76 | . . 76 76 . . Highest-Rated Ally 31 | . . 31 31 . . Initial UFD Resources 24 | . . . . . 24 Total Orders . | . . . . . . Ally Attacks 26 | . . 5 21 . . Total Damage 466 | . . 91 375 . . Kills 5 | . . 2 3 . . Allies Corrupted . | . . . . . . Allies Melted . | . . . . . . Intel | -11 -10 -10 -10 -8 -6 ------- Run | Yrd Mat Min Sub Scr Fac Active Infowar (turns) 1598 | . 119 508 627 18 326 Optics 162 | . . . . . 162 Sensors 1049 | . 119 508 98 . 324 Structural 19 | . . . . 18 1 Seismic 529 | . . . 529 . . Robot Analysis Total 6 | . . . . 6 . Derelict Logs Recovered 6 | . . 2 . 4 . Drone Launches . | . . . . . . Drone Recoveries . | . . . . . . Exploration | -11 -10 -10 -10 -8 -6 ------------- Run | Yrd Mat Min Sub Scr Fac Turns Passed 7091 | 59 173 669 820 4403 967 Spaces Moved 4253 | 55 154 493 553 2368 630 Core 486 | 10 . . . 93 383 Treads . | . . . . . . Legs 3 | 3 . . . . . Wheels 3754 | 42 154 493 553 2275 237 Hover . | . . . . . . Flight 10 | . . . . . 10 Fastest Speed 35 | 50 90 105 105 50 35 Average Speed 146 | 83 98 114 118 179 85 Slowest Speed 295 | 120 105 115 130 295 205 Overloaded Moves . | . . . . . . Propulsion Burnouts . | . . . . . . Robots Hopped . | . . . . . . Potential Cave-ins . | . . . . . . Cave-ins Triggered 1 | . . . . . 1 Exploration Rate (%) 47 | 2 34 94 46 94 17 Regions Visited 5 Branch Regions 3 Pre-discovered Areas 6 | . . 1 . 5 . Known Exits Taken . | . . . . . . Unknown Exits Taken 5 | 1 1 1 1 1 . Scrap Searched 12 | . . 2 . 10 . Spaces Dug 6 | . . . 1 . 5 Terrain Destroyed 24 | . . . 1 . 23 Melee 6 | . . . 1 . 5 Projectile 18 | . . . . . 18 AOE . | . . . . . . Terrain Rammed . | . . . . . . Walls Destroyed . | . . . . . . Machines Disabled . | . . . . . . Actions | -11 -10 -10 -10 -8 -6 --------- Run | Yrd Mat Min Sub Scr Fac Total 4990 | 64 168 568 656 2544 990 Wait 317 | . 1 36 31 7 242 Move 4248 | 54 153 492 552 2367 630 Hop . | . . . . . . Pick Up 127 | 2 6 12 10 80 17 Fast Attach 26 | 7 1 1 3 8 6 Attach 35 | . . 5 4 7 19 Detach 19 | . . . 1 12 6 Swap 25 | . 3 1 7 2 12 Drop 84 | 1 1 1 9 61 11 Fire 89 | . . 19 29 . 41 Melee 18 | . 3 . 10 . 5 Ram 2 | . . 1 . . 1 Kick . | . . . . . . Crush . | . . . . . . Escape Stasis . | . . . . . . Rewire . | . . . . . . Trap . | . . . . . . Miscellaneous . | . . . . . . Route ------- -11/Scrapyard -10/Materials -10/Mines (discovered 2 exits: [*Mat] / [*Sub]) -10/Subcaves (discovered 2 exits: [*Mat] / *Scr) -8/Scraptown (discovered 2 exits: *Fac x2) -6/Factory (discovered 5 exits: Fac x3 / Low x2) History --------- Turn | Location | Event 24 | -11/Scrapyard | Discovered new exit (range 16) 60 | -11/Scrapyard | Entered Materials 190 | -10/Materials | Discovered new exit (range 14) 233 | -10/Materials | Entered Mines 236 | -10/Mines | Learned location of Mines (-9) 300 | -10/Mines | Build established: Mutant 360 | -10/Mines | Lost 3 parts (1u2w) 539 | -10/Mines | Discovered new exit (range 7) 726 | -10/Mines | Learned Materials trap positions 744 | -10/Mines | Discovered new exit (range 9) 808 | -10/Mines | Received a Mining Laser from a helpful Derelict 902 | -10/Mines | Entered Subcaves 902 | -10/Subcaves | Accompanied by 3 allies 903 | -10/Subcaves | Approached by a straggling Scientist 907 | -10/Subcaves | Led the pair of lost Derelicts to an unsafe place 910 | -10/Subcaves | Shifting Twisted Machinery released Flamer 915 | -10/Subcaves | Shifting Twisted Machinery released Sub. Power Source 916 | -10/Subcaves | Discovered new exit (range 12) 924 | -10/Subcaves | Shifting Twisted Machinery released Battle Cannon 1386 | -10/Subcaves | Core integrity fell below 50% 1719 | -10/Subcaves | Scientist uncovered a shortcut to Scraptown 1722 | -10/Subcaves | Entered Scraptown 1727 | -8/Scraptown | System corruption cleaned by C-Scrubber 1941 | -8/Scraptown | Heard Great Nut preacher, LISTEN AND RECITE! 2022 | -8/Scraptown | Build established: Hauler-Mutant 2160 | -8/Scraptown | Scanned Subdweller tech in exchange for log data 2164 | -8/Scraptown | Learned location of Testing (-3) 2165 | -8/Scraptown | Learned Research interactive machine intel 2167 | -8/Scraptown | Learned Research terminal intel 2292 | -8/Scraptown | Discovered new exit (range 5) 2452 | -8/Scraptown | Visited Bundlers 2647 | -8/Scraptown | Visited The Evicted 2841 | -8/Scraptown | Visited SPCMW 2913 | -8/Scraptown | Visited Shadow of the Wyrm 3287 | -8/Scraptown | Visited Cyclists 3350 | -8/Scraptown | Visited Symbiants 3414 | -8/Scraptown | Visited UFD Registry 3431 | -8/Scraptown | Registered with UFD as "Nanoslider" 3465 | -8/Scraptown | Entered Cyclist Reading Room 3510 | -8/Scraptown | Visited Spacefarers 3662 | -8/Scraptown | Visited Scrap Suit Storage 3687 | -8/Scraptown | Found Scrap Suit 3753 | -8/Scraptown | Visited Cartography Club 4209 | -8/Scraptown | Found Deep Structural Scanner 4215 | -8/Scraptown | Learned location of Recycling (-8) 4215 | -8/Scraptown | Learned location of Zion (-7) 4215 | -8/Scraptown | Learned location of Armory (-3) 4215 | -8/Scraptown | Learned 16 Factory zone layouts 4215 | -8/Scraptown | Learned 20 Factory zone layouts 4215 | -8/Scraptown | Learned 4 Access zone layouts 4215 | -8/Scraptown | Learned 4 Storage zone layouts 4215 | -8/Scraptown | Learned 8 Lower Caves zone layouts 4215 | -8/Scraptown | Learned 12 Proximity Caves zone layouts 4215 | -8/Scraptown | Learned 20 Proximity Caves zone layouts 4215 | -8/Scraptown | Learned location of 2 exits from Research 4215 | -8/Scraptown | Learned location of 1 exit from Proximity Caves 4215 | -8/Scraptown | Learned location of 1 exit from Lower Caves 4428 | -8/Scraptown | Visited Science Guys 4523 | -8/Scraptown | Visited A0-MCA Data Center 4535 | -8/Scraptown | Given a C- rating by A0-MCA 4539 | -8/Scraptown | Found A0-MCA's Component Scanner 4612 | -8/Scraptown | Visited Modified Component R&D 4874 | -8/Scraptown | Discovered new exit (range 5) 4948 | -8/Scraptown | Visited Abandonware Association 4987 | -8/Scraptown | Learned abandonware demo "POISON.EXE" 5085 | -8/Scraptown | Visited Analyses Database 5128 | -8/Scraptown | Visited Derelict Rescue Squad 5147 | -8/Scraptown | Found DRS Beacon 5201 | -8/Scraptown | Visited Science Testing Area 5767 | -8/Scraptown | Visited Research Penetration Think Tank 6125 | -8/Scraptown | Entered Factory 6125 | -6/Factory | Evolved 8 slots: Power x1, Propulsion x4, Utility x3 6126 | -6/Factory | Identified exit to Lower Caves 6127 | -6/Factory | Identified exit to Factory 6450 | -6/Factory | Crushed by falling debris 6450 | -6/Factory | System corruption reached 10% 6481 | -6/Factory | Lost 3 parts (1p1n1u) 6768 | -6/Factory | Released all parts (5) 6807 | -6/Factory | Lost 6 parts (1p2n1u2w) 6817 | -6/Factory | Core integrity fell below 50% 7060 | -6/Factory | Build established: Mutant 7085 | -6/Factory | Cargo convoy interrupted 7085 | -6/Factory | Core integrity fell below 20% 7092 | -6/Factory | Destroyed by H-66 Slayer with Gauss Rifle Last Messages --------------- 07085_ ALERT: Cargo convoy interrupted, initiating access lockdown. 07085_ K-01 Serf destroyed. 07086_ Target Analyzer destroyed. 07087_ K-01 Serf collects debris. 07087_ U-05 Engineer builds a Wall. 07088_ U-05 Engineer destroyed. 07089_ K-01 Serf destroyed. 07089_ K-01 Serf collects debris. 07089_ Penetrated by Slug. 07089_ K-01 Serf collects debris. 07090_ Penetrated by Slug. 07091_ System corrupted: Matter fused (-5). 07091_ C-45 Heavy ARC bursts open, deploying its payload. 07091_ P-60 Hacker unfolds itself. 07091_ X-67 Chaingunner unfolds itself. 07091_ X-72 Disruptor unfolds itself. 07091_ I-36 Angel unfolds itself. 07092_ Core Shielding destroyed. 07092_ K-01 Serf collects debris. [Achievement: This Is Interesting...] Map ----- +----------------------------------------------------+ | # """ """????????????? | | ##########+######### # ????????????? | | #????# #???# # ????????????? | | #????# #???# # ????????????? | | ###### #???# ###########????????????? | | + #???# #??????????????????????? | | ###### #???# #??????????????????????? | | #????# #???# #??????????????????????? | | #### #????# #???# #??????????????????????? | | ???# #????# #???# #??????????????????????? | | ???# #????###############+#????????????????####### | | ???# #???????# #????????????????## | | ???# #???????# """" #????????????????## """" | | ???# #???????# // """" #?????????????????# ""T" | | ####+####????# """" ###########???????# | | #????# """" # #???????# | | #????# """" # #???????# | | #????# """" # """ """ #???????# | | #????# # """ """ #???????#/ | | "" "" #???## ""# """ """ #???????#]= | | ""T"" #???# Y"# #???????#!!! | | """ #???## ""# #???????#!![] | | ###### # #???????#!![! | | ###+######T ############+######;################## | | p !% k |%! p ![ !! | | k = @ k xipuxx &! | | =% % R i ! | | ! ix x%" | | k h " | | ###+#############+#############+######+########## | | ??? ???????# #?# # """ ????? ### | | ???? ??????# "! #?# """ # """ ?????#### | | #????# ??????????????"" ????#### | | """"" #????# #????????????? ????#### | | """"" [#????# #???????????? ""???#### | | """ #????# #???????????? ""???#### | | #????# #???????????? S"??#### | | #????# #????????????? ! ???#### | | #########????# #?????????????######???#### | | ?????????????##########??????????????????????????? | | ?????????????????????????????????????????????????? | | ?????????????????????????????????????????????????? | | ?????????????????????????????????????????????????? | | #????????????????????????????????????????????????? | | ########?????????????????????????????????????????? | | # #?????????????????????????????????????????? | | # #?????????????????????????????????????????? | | # """"#?????????????????????????????????????????? | | # """"#?????????????????????????????????????????? | | # """"#?????????????????????????????????????????? | +----------------------------------------------------+ Best States ------------- Heat Dissipation 37 Energy Generation 28 Energy Capacity 410 Matter Stores 300 Matter Capacity 300 Sight Range 21 Robot Scan Range 14 Terrain Scan Density 10 Armor Coverage 225 Core Shielding 20 Weapon Shielding 33 Evasion (%) 50 Targeting Accuracy 5 Target Analysis 5 Defensive Hacking 12 Item Schematics ----------------- None Robot Schematics ------------------ None Fabricated ------------ Nothing Repaired ---------- Nothing Studied --------- None Alien Tech Used ----------------- None Achievements -------------- Bob, First Of His Name Nice Directions, Buddy Packrat This Is Interesting... Challenges ------------ None Game ------ Seed BiocellGuidedShredder Manual? 0 Play Time 01:42:22 Cumulative 63.2 hours Start 2026.08.17 @ 14:29:47 End 2026.08.17 @ 16:55:36 Sessions 1 Manual Loads 0 Difficulty Rogue Special Mode None Game No. 45 Rogue 45 Adventurer 0 Explorer 0 Win Type - Total 0 Types 0/0/0/0/0/0/0/0/0/0 Lore% 28 Gallery% 33 Achievement% 27 Wizard Run 0 Options --------- Layout 0 ASCII 0 Keyboard 1 Movement Vi Keybinds 0 Fullscreen 2 Font 18/SmallcapsGlow Map View 76x50 Zoom Use 0% Tactical HUD 1 Map Filters NONE Filters NONE Steam 1 RUN: 70977f88-dc61-47d1-a059-77a42028c189